bitfinex/quotes_ETHUSD_20250110
["timestamp","ask_amount","ask_price","bid_price","bid_amount"]
[1736517615938,0.55,3249.8,3248.5,1.6331]
[1736517616069,0.55,3249.6,3248.1,4.71182]
[1736517616387,0.55,3249.2,3248.1,1.6331]
[1736517616725,0.55,3249.0,3248.4,3.0]
[1736517616892,2.55972,3249.1,3248.6,3.07819]
[1736517617609,2.55972,3249.1,3248.0,20.0]
[1736517617610,2.55972,3249.1,3248.4,3.07841]
[1736517617924,0.55,3249.0,3248.3,3.07851]
[1736517618125,0.82350217,3249.0,3248.1,6.07869]
[1736517618494,3.10972,3248.8,3248.1,3.07869]
[1736517618700,0.55,3248.5,3248.0,20.0]
[1736517618906,2.55972,3248.6,3248.0,20.0]
[1736517619105,5.54,3249.6,3249.5,7.97171583]
[1736517619313,10.6276781,3249.6,3249.5,7.60229899]
[1736517619519,11.06748963,3249.6,3249.5,6.08706527]
[1736517620065,14.08248963,3249.6,3249.5,1.81771556]
[1736517620268,14.79721084,3249.6,3249.5,0.80703224]
[1736517620550,14.78971084,3249.6,3249.5,0.11331096]
[1736517620752,11.78221084,3249.6,3249.5,0.11331096]
[1736517621059,11.78971084,3249.6,3249.5,0.11331096]
[1736517621351,14.80471084,3249.6,3249.5,0.01631096]
[1736517621524,14.80471084,3249.6,3247.6,3.07913]
[1736517621525,5.54,3248.8,3247.6,3.07913]
[1736517621730,0.55,3248.6,3247.6,3.07913]
[1736517621925,0.55,3248.9,3247.8,3.079]
[1736517622126,3.62803,3248.9,3247.3,0.0075]
[1736517622441,0.565,3249.0,3247.7,3.0]
[1736517622757,0.55,3248.5,3247.7,3.0]
[1736517622916,0.912825,3248.5,3247.7,3.0]
[1736517623116,0.912825,3248.5,3247.6,3.07912]
[1736517623457,3.07896,3247.9,3246.9,3.07978]
[1736517623612,3.07896,3247.9,3246.3,3.08036]
[1736517623613,0.55,3247.7,3246.8,3.07995]
[1736517623816,6.09,3247.5,3246.5,3.08022]
[1736517624056,10.141211,3247.5,3246.5,3.08022]
[1736517624556,10.141211,3247.5,3246.1,3.08061]
[1736517624557,0.55,3247.1,3246.1,3.0806]
[1736517625165,6.09,3246.9,3246.2,3.0805]
[1736517625345,5.54,3246.9,3246.3,0.03080331]
[1736517625512,5.54,3247.4,3246.4,0.0075]
[1736517625716,5.54,3247.7,3247.1,3.07959]
[1736517626023,4.744,3247.8,3247.1,0.307959]
[1736517626251,4.744,3247.8,3247.1,3.0]
[1736517626556,4.744,3247.8,3246.6,4.74549]
[1736517626557,0.55,3247.7,3246.8,3.07992]
[1736517626758,0.55,3247.5,3246.1,1.5733]
[1736517626914,3.62957,3247.3,3246.1,3.08052]
[1736517627134,0.55,3247.1,3246.1,3.08052]
[1736517627336,1.466965,3247.1,3246.1,3.08052]
[1736517627955,4.546695,3247.1,3246.2,3.0]
[1736517628152,3.08001,3246.8,3245.7,3.2487141]
[1736517628366,1.466965,3247.1,3245.7,3.2487141]
[1736517628367,6.09,3246.7,3245.7,0.1677341]
[1736517628588,0.55,3246.5,3245.7,0.1677341]
[1736517628755,0.55,3246.3,3245.7,0.1677341]
[1736517628958,5.969,3246.4,3245.8,3.11165954]
[1736517629192,5.969,3246.4,3245.8,3.08085]
[1736517629608,0.55,3246.3,3245.7,0.1677341]
[1736517629762,0.55,3245.9,3245.7,0.1677341]
[1736517629967,1.159,3245.8,3245.7,0.1677341]
[1736517630286,9.7799,3245.8,3245.7,0.1677341]
[1736517630495,9.7949,3245.8,3245.7,0.1677341]
[1736517630696,10.06855919,3245.8,3245.7,0.1677341]
[1736517631109,6.09,3245.0,3243.2,1.6465]
[1736517631272,0.55,3244.3,3243.3,3.08325]
[1736517631478,0.55,3244.3,3243.2,1.6465]
[1736517631479,6.09,3244.3,3243.2,1.6465]
[1736517631803,5.54,3244.8,3243.9,3.08268]
[1736517632018,5.54,3244.8,3244.2,3.0824]
[1736517632185,5.54,3244.8,3244.1,0.309668]
[1736517632372,5.54,3244.8,3244.1,3.08249]
[1736517632577,0.55,3244.7,3244.1,3.08249]
[1736517632777,0.55,3244.7,3243.6,3.0829]
[1736517632978,0.55,3244.1,3243.2,1.6465]
[1736517633301,5.54,3244.2,3243.3,0.03082945]
[1736517633474,5.54,3244.2,3243.2,1.6465]
[1736517633821,0.55,3244.1,3243.6,3.08296]
[1736517634013,0.609,3244.1,3243.5,3.0]
[1736517634332,0.55,3243.9,3243.2,3.08337]
[1736517634617,0.55,3243.9,3243.3,3.08327]
[1736517634866,6.09,3244.1,3243.3,3.08327]
[1736517635057,6.09,3243.8,3242.8,1.5472]
[1736517635259,0.609,3243.7,3242.8,1.5472]
[1736517635557,5.969,3243.6,3243.0,3.08353]
[1736517635724,0.429,3243.6,3243.5,3.08308]
[1736517636060,0.429,3244.5,3243.6,0.0225]
[1736517636260,0.429,3244.5,3243.5,1.522]
[1736517636261,0.429,3244.5,3243.7,3.0]
[1736517636567,0.55,3244.4,3243.6,3.0]
[1736517636723,0.55,3244.4,3243.7,3.08289]
[1736517637124,0.55,3244.4,3243.4,3.08309]
[1736517637378,0.55,3244.2,3243.2,3.08331]
[1736517637677,0.55,3244.0,3243.2,3.08331]
[1736517638022,5.54,3243.7,3242.4,0.1677341]
[1736517638222,8.6229,3243.7,3242.6,3.08391]
[1736517638489,5.54,3243.7,3242.4,0.19857296]
[1736517638687,0.55,3243.6,3242.6,3.08393]
[1736517638856,0.55,3243.4,3242.6,3.08393]
[1736517639054,5.54,3243.7,3242.9,3.08359]
[1736517639238,5.54,3243.7,3242.5,3.0]
[1736517639239,3.083,3243.6,3242.5,3.0]
[1736517639433,5.54,3243.7,3242.4,3.2518341]
[1736517639434,0.55,3243.5,3242.6,3.08394]
[1736517639634,0.55,3243.5,3242.8,3.08373]
[1736517639840,5.54,3244.0,3242.9,0.03083755]
[1736517640302,0.55,3243.7,3242.4,3.2517841]
[1736517640589,0.55,3243.9,3242.5,3.11479523]
[1736517640804,5.54,3244.0,3243.3,3.08319]
[1736517641007,5.54,3244.0,3242.6,3.0]
[1736517641008,5.54,3244.3,3243.0,3.11433141]
[1736517641296,0.429,3244.2,3243.2,0.015]
[1736517641498,0.429,3244.2,3243.3,3.08327]
[1736517641699,0.429,3244.2,3244.0,3.08258]
[1736517641840,0.429,3244.2,3243.4,3.03082486]
[1736517641841,0.429,3244.2,3244.1,3.08251]
[1736517642288,0.429,3245.0,3244.9,3.08172]
[1736517643665,0.429,3245.0,3244.7,3.08193]
[1736517643849,0.429,3245.0,3244.8,3.08185]
[1736517644045,0.55,3244.9,3243.7,3.0]
[1736517644245,0.55,3244.9,3244.4,3.08214]
[1736517644696,0.55,3244.9,3244.5,3.08213]
[1736517645402,0.429,3245.0,3244.3,0.03082102]
[1736517645547,0.429,3245.0,3244.4,3.08218]
[1736517645747,0.429,3245.0,3244.0,1.5631]
[1736517645748,0.55,3244.9,3244.0,1.5631]
[1736517645964,0.55,3244.9,3243.2,3.08337]
[1736517645965,0.55,3244.7,3244.1,3.08244]
[1736517646206,0.635,3244.7,3243.6,6.08299]
[1736517646401,0.429,3245.0,3244.5,3.08213]
[1736517646606,0.429,3245.0,3244.8,3.08179]
[1736517646747,0.429,3245.0,3244.9,3.08175]
[1736517647146,0.085,3246.0,3244.9,0.308175]
[1736517647407,0.427,3245.9,3245.2,3.0814]
[1736517647562,0.427,3245.9,3244.6,3.08204]
[1736517647905,0.427,3245.9,3245.1,3.08154]
[1736517648043,0.55,3245.8,3244.6,3.08196]
[1736517648248,0.55,3245.8,3244.3,4.70764]
[1736517648249,0.55,3245.4,3243.7,4.60429]
[1736517648455,0.55,3245.2,3244.5,3.0]
[1736517648656,0.55,3245.2,3244.4,3.08214]
[1736517649083,0.55,3244.8,3244.0,3.08259]
[1736517649256,0.55,3244.6,3244.0,3.08259]
[1736517649456,0.427,3244.5,3244.0,3.08257]
[1736517649854,0.55,3244.4,3244.0,3.08257]
[1736517650672,0.427,3244.5,3243.8,0.0308263]
[1736517650947,0.427,3244.5,3244.1,3.08243]
[1736517651460,0.427,3244.5,3244.0,3.0]
[1736517651789,0.427,3244.9,3244.8,3.08185]
[1736517651990,0.427,3245.1,3245.0,3.08158]
[1736517652488,0.512,3245.9,3245.0,0.308158]
[1736517652646,0.512,3245.9,3244.7,1.6459]
[1736517652852,0.512,3245.9,3244.7,4.6459]
[1736517653187,6.09,3245.8,3244.9,3.08175]
[1736517653356,0.55,3245.6,3244.4,3.08223]
[1736517653684,0.55,3245.6,3244.6,3.08204]
[1736517653917,1.159,3245.6,3244.5,3.0]
[1736517654073,1.159,3245.6,3244.9,3.08175]
[1736517654386,5.54,3245.8,3245.0,0.03081649]
[1736517654588,0.512,3245.9,3245.5,3.08115]
[1736517654790,0.512,3245.9,3245.4,3.08124]
[1736517655191,0.55,3245.8,3244.6,3.0]
[1736517655350,0.62411267,3246.1,3245.2,1.5223]
[1736517655351,0.427,3246.1,3245.2,1.5223]
[1736517655546,0.427,3246.1,3246.0,3.08071]
[1736517656689,0.8800646,3246.3,3246.2,3.08052]
[1736517656845,0.8800646,3246.3,3246.2,7.62532]
[1736517656846,5.42e-06,3246.3,3246.2,7.62532]
[1736517657054,4.32,3247.2,3246.3,3.0225]
[1736517657380,4.32,3247.2,3247.1,3.07967]
[1736517657585,0.427,3247.5,3247.1,6.07967]
[1736517657751,0.427,3247.5,3247.4,3.07938]
[1736517658151,0.427,3247.5,3247.2,3.07953]
[1736517658393,0.427,3247.5,3246.9,3.07985]
[1736517658865,0.427,3247.5,3246.6,1.6484]
[1736517659189,0.427,3247.5,3247.2,3.07954]
[1736517659365,0.55,3247.4,3246.9,3.07976]
[1736517659691,0.55,3247.4,3246.9,3.0]
[1736517659890,0.085,3247.8,3246.9,6.11060545]
[1736517660191,0.427,3247.7,3247.6,3.07912]
[1736517660395,0.427,3248.0,3247.9,3.07891]
[1736517660574,5.54,3248.7,3247.9,3.07891]
[1736517660779,0.427,3248.6,3248.0,0.03078572]
[1736517660976,0.427,3248.6,3248.4,3.07841]
[1736517661180,0.427,3248.6,3247.8,3.0]
[1736517661181,5.967,3248.6,3248.3,3.07851]
[1736517661487,5.967,3248.6,3247.7,3.07902]
[1736517661488,0.427,3248.6,3248.5,3.07834]
[1736517661897,0.427,3248.6,3248.3,3.07851]
[1736517662081,0.55,3248.5,3248.2,3.07861]
[1736517662299,6.09,3248.5,3248.0,3.0788]
[1736517662493,6.09,3248.5,3247.5,1.6484]
[1736517662668,6.09,3248.5,3247.6,0.03078567]
[1736517662867,0.427,3248.6,3247.4,3.0793]
[1736517662868,0.55,3248.1,3247.4,3.0793]
[1736517663069,0.55,3248.1,3246.8,3.07991]
[1736517663070,0.55,3247.9,3246.8,3.07991]
[1736517663371,0.55,3247.7,3246.9,0.03079364]
[1736517663689,0.609,3247.7,3246.7,0.03079479]
[1736517664000,5.54,3247.9,3247.2,3.07957]
[1736517664154,5.54,3247.9,3246.6,1.6208]
[1736517664155,0.55,3247.8,3247.0,3.0]
[1736517664355,5.54,3247.9,3247.7,3.07909]
[1736517664564,5.54,3247.9,3247.8,3.079]
[1736517664825,5.54,3248.4,3247.5,1.6208]
[1736517664995,0.88379348,3248.5,3248.4,3.07843]
[1736517665156,0.88379348,3248.5,3248.3,3.07847]
[1736517665582,0.88379348,3248.5,3247.6,3.07919]
[1736517665780,0.88379348,3248.5,3247.5,4.70009]
[1736517665781,0.55,3248.2,3247.7,3.07902]
[1736517666206,5.54,3248.1,3247.8,3.07898]
[1736517666705,6.09,3248.0,3247.5,3.07924]
[1736517667007,6.09,3248.0,3246.8,3.0799]
[1736517667008,0.55,3247.8,3246.8,3.0799]
[1736517667211,0.55,3247.8,3247.2,3.07955]
[1736517667212,0.55,3247.6,3247.2,3.07955]
[1736517667410,0.55,3247.6,3246.1,4.03884386]
[1736517667411,6.09,3247.6,3246.2,1.5333]
[1736517667632,0.55,3247.4,3246.3,3.08043]
[1736517667769,6.149,3247.5,3246.5,3.08021]
[1736517667770,0.55,3247.2,3246.5,3.08021]
[1736517667967,0.55,3247.0,3246.4,3.08031]
[1736517668485,0.55,3246.8,3246.4,3.08027]
[1736517668680,5.54,3246.9,3246.1,0.03080239]
[1736517668883,5.54,3246.9,3246.2,3.08052]
[1736517669173,0.427,3247.1,3246.7,3.08003]
[1736517669693,0.427,3247.1,3245.7,3.08099]
[1736517669694,0.55,3247.0,3246.5,3.08023]
[1736517669900,0.55,3246.8,3246.5,3.08023]
[1736517670415,0.55,3246.8,3245.8,3.0]
[1736517670416,0.427,3247.0,3246.9,3.07986]
[1736517670616,0.427,3247.0,3246.9,3.11065527]
[1736517670914,0.427,3247.0,3246.9,3.07986]
[1736517671409,0.427,3247.0,3246.7,3.08002]
[1736517671994,0.427,3247.0,3246.3,1.5489]
[1736517672214,0.427,3247.0,3246.8,3.07993]
[1736517672518,0.427,3247.0,3246.6,3.0801]
[1736517672826,0.427,3247.0,3246.3,1.5489]
[1736517672827,0.427,3247.0,3246.5,3.08018]
[1736517672989,6.175,3246.9,3246.4,3.08031]
[1736517673374,6.175,3246.9,3246.1,3.08052]
[1736517673712,6.175,3246.9,3245.3,0.0075]
[1736517673713,0.55,3246.7,3245.3,1.5021]
[1736517673919,0.55,3246.5,3245.5,3.08117]
[1736517674073,0.55,3246.3,3245.3,3.0]
[1736517674273,0.55,3246.3,3246.1,3.08055]
[1736517674274,6.09,3246.3,3246.1,3.08055]
[1736517674630,6.09,3246.3,3246.2,3.08052]
[1736517674631,5.54,3246.3,3246.2,3.08052]
[1736517674834,6.09,3246.2,3245.3,4.5864]
[1736517674994,6.09,3246.2,3245.7,3.08094]
[1736517675577,6.09,3246.2,3244.6,3.08198]
[1736517675578,6.09,3246.2,3245.5,3.08115]
[1736517676330,0.55,3246.0,3245.2,3.11228085]
[1736517676530,0.55,3246.0,3245.4,3.08127]
[1736517676742,0.55,3246.0,3244.9,1.5974]
[1736517677035,0.55,3246.0,3244.5,4.68541]
[1736517677036,6.09,3245.6,3244.5,4.68541]
[1736517677173,0.424,3245.5,3244.7,3.03081389]
[1736517677375,0.424,3245.5,3245.4,3.08128]
[1736517677679,0.424,3245.5,3245.4,6.08128]
[1736517677877,0.085,3246.1,3245.7,3.08095]
[1736517678116,0.55,3245.8,3244.6,3.08204]
[1736517678350,5.54,3245.7,3245.0,3.08161]
[1736517678479,6.09,3245.6,3245.1,3.0815]
[1736517678677,6.09,3245.6,3244.8,0.03081541]
[1736517678877,6.09,3245.6,3244.8,3.11263541]
[1736517679114,0.424,3246.0,3244.8,0.34207895]
[1736517679115,5.54,3245.9,3244.8,0.34207895]
[1736517679325,5.54,3245.9,3244.9,0.0308122]
[1736517679526,0.55,3245.8,3245.6,3.08108]
[1736517679728,0.55,3245.8,3245.0,0.03081154]
[1736517679971,6.09,3245.6,3245.0,3.08161]
[1736517680093,0.55,3245.4,3244.7,3.08189]
[1736517680294,0.55,3245.2,3244.7,3.08189]
[1736517680820,0.55,3245.2,3244.1,4.68002]
[1736517681018,0.55,3245.2,3244.7,3.08193]
[1736517681717,0.085,3245.8,3244.4,0.0075]
[1736517681919,0.424,3245.7,3245.3,3.08135]
[1736517682075,0.424,3245.7,3244.9,1.5976]
[1736517682076,0.55,3245.6,3245.2,3.08145]
[1736517682276,6.09,3245.6,3245.0,3.08163]
[1736517682480,0.55,3245.4,3244.8,3.0818]
[1736517682898,0.55,3245.4,3244.8,3.08177]
[1736517683102,0.55,3245.4,3245.1,3.08155]
[1736517683302,0.55,3245.4,3245.2,3.08143]
[1736517683501,0.55,3245.5,3244.9,3.08173]
[1736517683688,0.424,3245.6,3245.5,3.08118]
[1736517684234,5.625,3246.2,3246.1,3.08061]
[1736517684445,4.77664204,3246.4,3246.3,3.08043]
[1736517684789,0.45864204,3246.4,3246.3,3.08043]
[1736517685098,0.424,3246.8,3246.7,3.08005]
[1736517685296,0.08500204,3247.6,3246.7,6.11084669]
[1736517685536,0.424,3247.5,3247.4,3.07938]
[1736517686629,0.45902226,3247.9,3247.8,3.079]
[1736517686837,5.54,3248.2,3246.6,1.6297]
[1736517686988,5.54,3248.2,3247.2,3.07954]
[1736517687185,3.62899,3247.9,3246.8,3.0799]
[1736517687400,3.62899,3247.9,3245.3,0.25]
[1736517687401,5.54,3247.8,3246.3,3.08043]
[1736517687612,0.55,3247.7,3246.9,3.07979]
[1736517687934,0.55,3247.7,3246.2,4.6403]
[1736517688136,5.54,3247.8,3246.4,0.015]
[1736517688321,5.54,3247.8,3246.3,0.03079793]
[1736517688322,0.424,3247.6,3246.3,0.015]
[1736517688518,6.09,3247.5,3247.0,3.07967]
[1736517688726,6.09,3247.5,3246.6,3.08014]
[1736517688924,6.09,3247.5,3247.0,3.07967]
[1736517689233,6.09,3247.5,3247.2,3.07949]
[1736517689723,5.54,3247.5,3247.2,0.307949]
[1736517689906,5.54,3247.5,3247.4,3.07938]
[1736517690930,5.54,3247.5,3247.4,6.07938]
[1736517691136,5.54,3248.9,3247.6,3.07919]
[1736517691325,0.424,3248.4,3248.3,3.07853]
[1736517691497,0.424,3248.5,3248.1,0.03078407]
[1736517691701,0.424,3248.5,3248.4,3.07843]
[1736517692741,5.964,3248.5,3247.8,3.07891]
[1736517692898,0.55,3248.2,3247.3,1.5376]
[1736517693250,6.09,3248.0,3247.8,3.07898]
[1736517693395,5.54,3248.3,3247.9,3.07891]
[1736517693596,5.54,3248.3,3247.8,3.07898]
[1736517693906,6.09,3248.1,3247.0,3.07976]
[1736517694109,5.964,3248.5,3248.1,3.07869]
[1736517694518,0.55,3248.4,3247.9,3.07887]
[1736517694693,6.09,3248.4,3247.2,3.0]
[1736517694897,6.09,3248.4,3247.7,3.07907]
[1736517695311,0.424,3248.3,3247.7,3.07906]
[1736517695548,1.0754,3248.3,3247.7,3.07906]
[1736517695725,0.55,3248.2,3247.7,3.07906]
[1736517696342,0.55,3248.2,3247.4,0.03079035]
[1736517696343,0.55,3248.2,3247.9,3.07889]
[1736517696648,0.55,3248.2,3247.4,0.03079035]
[1736517696856,5.54,3248.6,3247.5,3.07929]
[1736517697010,0.424,3248.2,3248.1,3.07872]
[1736517697350,0.424,3248.2,3247.6,0.31100804]
[1736517697653,0.55,3248.1,3247.2,3.0795]
[1736517698035,5.964,3248.2,3246.9,4.61741]
[1736517698036,0.55,3247.9,3246.9,4.61741]
[1736517698236,0.55,3247.7,3247.0,0.03079322]
[1736517698452,5.54,3247.8,3247.0,0.03079322]
[1736517698608,5.54,3247.8,3247.1,0.015]
[1736517698814,5.54,3247.8,3247.7,3.0791]
[1736517699315,5.54,3247.8,3247.7,4.6662]
[1736517699722,0.424,3248.1,3248.0,3.07881]
[1736517700457,0.424,3248.1,3247.8,3.07896]
[1736517700769,0.424,3248.1,3247.6,3.07917]
[1736517700973,0.424,3248.1,3246.2,0.24999]
[1736517700974,0.55,3247.9,3247.3,3.07941]
[1736517701310,6.7499,3247.9,3247.0,0.03079248]
[1736517701515,6.7499,3247.9,3246.8,0.0307941]
[1736517701812,6.7499,3247.9,3247.0,3.07968]
[1736517702252,6.7499,3247.9,3247.3,3.07947]
[1736517702436,6.7499,3247.9,3247.4,3.07936]
[1736517702675,6.7499,3247.9,3247.2,3.07948]
[1736517702871,6.7499,3247.9,3247.0,0.03079419]
[1736517703078,5.54,3247.9,3247.0,0.03079419]
[1736517703258,5.54,3247.9,3247.5,3.07927]
[1736517703466,5.54,3247.9,3246.8,3.07986]
[1736517703467,0.55,3247.8,3246.8,3.07986]
[1736517703661,0.55,3247.8,3246.9,3.1106541]
[1736517703846,0.55,3247.8,3247.3,3.07946]
[1736517704283,0.55,3247.8,3246.7,1.6001]
[1736517704284,0.55,3247.8,3247.2,3.07957]
[1736517704485,0.55,3247.8,3247.0,0.03079408]
[1736517704486,0.55,3247.8,3247.3,3.07946]
[1736517704763,0.55,3247.8,3247.4,3.07938]
[1736517705372,6.09,3247.8,3247.4,3.07938]
[1736517705746,6.09,3247.8,3247.6,3.07911]
[1736517705969,6.09,3247.8,3247.3,3.0307917]
[1736517706169,0.55,3247.9,3247.3,3.0307917]
[1736517706490,5.54,3247.9,3247.8,3.079]
[1736517706987,5.54,3247.9,3247.7,3.07908]
[1736517707187,5.54,3247.9,3247.3,1.5902]
[1736517707388,5.54,3247.9,3247.8,3.079]
[1736517708050,0.422,3248.1,3247.8,3.079]
[1736517708051,0.422,3248.1,3247.8,3.07896]
[1736517708455,0.422,3248.1,3247.9,3.0789]
[1736517708995,0.422,3248.1,3247.2,3.07948]
[1736517708996,6.09,3248.0,3247.2,3.07948]
[1736517709192,0.55,3247.8,3247.3,3.07939]
[1736517709491,0.55,3247.8,3247.0,4.63986]
[1736517709492,0.55,3247.8,3247.4,3.07936]
[1736517710115,0.55,3247.8,3247.5,3.07926]
[1736517710317,5.54,3248.0,3247.8,3.07897]
[1736517710518,0.422,3248.1,3247.6,3.07919]
[1736517710716,5.625,3248.8,3247.8,1.6294]
[1736517710931,0.422,3248.7,3248.6,3.07824]
[1736517711141,0.422,3248.7,3248.1,3.07866]
[1736517711142,0.45941485,3249.1,3248.2,3.03078084]
[1736517711326,0.422,3249.2,3248.6,1.5258]
[1736517711523,0.422,3249.2,3248.7,0.03077736]
[1736517711726,0.45898283,3249.4,3249.3,7.60338]
[1736517712035,0.45941485,3249.8,3249.4,3.0]
[1736517712237,4.85e-06,3249.8,3249.7,6.0997]
[1736517712408,0.422,3250.1,3250.0,6.07692]
[1736517713300,0.422,3250.1,3249.7,3.0922]
[1736517713301,0.422,3250.3,3249.3,1.5258]
[1736517713620,0.507,3250.3,3249.5,3.07735]
[1736517713869,0.507,3250.3,3249.6,3.10802954]
[1736517713870,0.55,3250.2,3249.6,3.10802954]
[1736517714220,0.422,3250.1,3249.7,3.07717]
[1736517714421,0.422,3250.1,3249.5,0.015]
[1736517714641,0.422,3250.1,3249.5,3.0923]
[1736517714826,0.422,3250.1,3250.0,3.07692]
[1736517716364,0.422,3250.6,3249.7,0.015]
[1736517716630,0.6291506,3251.6,3250.4,3.0]
[1736517716631,0.422,3251.1,3250.4,3.0]
[1736517716832,0.085,3251.5,3250.8,3.07616]
[1736517717185,0.421,3251.4,3250.5,3.0764]
[1736517717524,0.421,3251.4,3250.4,3.07654]
[1736517717525,0.55,3251.3,3250.4,3.07654]
[1736517717768,0.55,3251.3,3250.5,3.10711055]
[1736517717978,0.55,3251.4,3250.5,0.03076055]
[1736517718140,0.55,3251.1,3250.4,3.07651]
[1736517718747,0.55,3251.1,3250.3,0.03076083]
[1736517718963,0.55,3251.4,3250.3,0.03076083]
[1736517719165,0.55,3250.9,3250.5,3.07644]
[1736517720245,0.55,3250.9,3250.2,6.07664]
[1736517720428,0.55,3250.7,3250.0,3.07689]
[1736517720767,0.55,3250.7,3249.6,1.6235]
[1736517720768,6.09,3250.7,3249.9,3.0]
[1736517720968,5.54,3251.1,3250.6,3.07635]
[1736517721274,5.961,3251.1,3250.7,0.03075998]
[1736517721447,5.961,3251.1,3251.0,6.07597]
[1736517721448,0.421,3251.1,3251.0,6.07597]
[1736517721644,5.625,3251.7,3251.2,3.0]
[1736517721844,5.961,3252.0,3251.8,3.07521]
[1736517722048,0.421,3252.3,3252.1,3.0]
[1736517722662,5.961,3252.6,3252.1,3.0]
[1736517722863,0.45968014,3253.3,3252.5,3.07449]
[1736517722864,5.625,3253.1,3252.5,3.07449]
[1736517723067,0.421,3252.8,3252.5,3.07449]
[1736517723736,3.07352,3253.6,3252.3,0.03074315]
[1736517723737,0.421,3253.2,3252.7,3.0]
[1736517723945,4.03884386,3254.5,3252.6,0.03074314]
[1736517723946,5.54,3254.1,3253.1,6.07399]
[1736517724163,0.085,3254.6,3253.2,3.03073427]
[1736517724164,5.54,3254.5,3253.2,3.03073427]
[1736517724364,6.15759431,3254.9,3254.1,3.073]
[1736517724577,5.961,3254.8,3254.3,3.0]
[1736517724877,5.961,3254.8,3253.3,0.015]
[1736517724878,5.961,3254.8,3253.3,0.0075]
[1736517725106,3.0725,3254.7,3253.5,3.0736]
[1736517725280,5.961,3254.8,3253.6,0.03073104]
[1736517725466,5.961,3254.8,3253.3,0.0075]
[1736517725467,0.903329,3254.7,3253.3,0.0075]
[1736517725780,5.54,3254.7,3254.0,3.0]
[1736517725979,0.421,3254.6,3253.4,0.0075]
[1736517726140,0.421,3254.6,3254.2,3.07285]
[1736517726340,0.421,3254.6,3254.3,0.03072613]
[1736517726645,0.78224753,3255.5,3253.8,1.5021]
[1736517726646,0.1677341,3255.5,3254.5,3.0]
[1736517726892,0.57927341,3255.4,3254.6,0.03072008]
[1736517727044,0.421,3255.4,3255.0,1.6191]
[1736517727241,0.421,3255.4,3254.5,1.6191]
[1736517727441,0.421,3255.4,3254.5,4.69174]
[1736517727641,0.421,3255.4,3254.7,3.07245]
[1736517727896,0.421,3255.4,3254.8,3.0]
[1736517728101,0.421,3255.4,3254.6,3.07256]
[1736517728303,0.421,3255.4,3254.8,3.0]
[1736517728602,0.421,3255.3,3254.8,3.0]
[1736517728766,0.421,3255.3,3254.5,4.6191]
[1736517729082,0.55,3255.2,3254.5,4.6191]
[1736517729304,0.55,3255.2,3254.2,3.0]
[1736517729602,0.55,3255.2,3254.0,4.594]
[1736517729603,0.55,3255.2,3254.0,1.594]
[1736517729897,0.55,3255.2,3253.9,3.0]
[1736517729898,0.55,3254.8,3253.7,3.07341]
[1736517730057,0.55,3254.6,3254.0,3.07313]
[1736517730245,0.55,3254.9,3253.9,3.0]
[1736517730763,0.55,3254.9,3254.0,0.03072756]
[1736517731579,5.54,3255.0,3254.3,3.0]
[1736517731779,5.54,3255.0,3254.3,3.07277]
[1736517731986,0.421,3255.2,3254.7,3.0]
[1736517732141,0.421,3255.2,3254.2,1.5017]
[1736517732142,0.55,3255.1,3254.8,0.03072068]
[1736517732343,0.55,3255.1,3253.9,3.07314]
[1736517732344,9.16212,3255.1,3253.9,3.07314]
[1736517732549,0.55,3254.9,3254.0,3.0731]
[1736517732800,0.55,3254.9,3254.1,3.07304]
[1736517733177,0.55,3254.9,3254.2,3.07294]
[1736517733380,0.55,3254.9,3254.3,0.03072682]
[1736517733615,0.421,3255.0,3254.5,3.07258]
[1736517733817,0.421,3255.0,3254.6,3.10328132]
[1736517733989,0.421,3255.0,3254.6,0.03072132]
[1736517734192,0.421,3255.0,3254.9,3.07229]
[1736517734378,0.421,3255.0,3254.6,1.69342132]
[1736517734586,0.421,3255.0,3252.8,3.07422]
[1736517734587,0.421,3255.0,3254.2,1.6627]
[1736517734781,0.55,3254.9,3254.4,3.07275]
[1736517734978,0.421,3255.0,3254.5,3.03072419]
[1736517735321,0.421,3255.0,3254.2,4.73563]
[1736517735526,0.55,3254.9,3253.8,4.6265]
[1736517735823,6.09,3254.9,3253.9,3.07317]
[1736517736119,6.09,3254.9,3254.0,0.03072751]
[1736517736120,0.958328,3254.8,3254.0,0.03072751]
[1736517736323,5.54,3254.9,3254.2,0.015]
[1736517736547,5.54,3254.9,3254.0,0.0225]
[1736517736761,5.54,3254.9,3254.4,3.07271]
[1736517736966,5.54,3254.9,3253.8,1.6265]
[1736517736967,6.1361,3254.9,3254.2,3.07292]